[Event "WJCC U20 Open 2019"]
[Site "New Delhi"]
[Date "2019.10.21"]
[Round "7.41"]
[White "Maltezeanu, Stefan"]
[Black "Wagh Suyog"]
[Result "0-1"]
[ECO "B94"]
[WhiteElo "2102"]
[BlackElo "2229"]
[Annotator "NA"]
[PlyCount "92"]
[EventDate "2019.10.15"]
[EventType "swiss"]
[EventCountry "IND"]
[SourceTitle "playchess.com"]
[Source "ChessBase"]
[SourceQuality "1"]
[TimeControl "40/5400+30:1800+30"]

1. e4 {[%emt 0:00:00]} c5 {[%emt 0:00:00]} 2. Nf3 {[%emt 0:00:00]} d6 {[%emt 0:00:00]} 3. d4 {[%emt 0:00:08]} cxd4 {[%emt 0:00:17]} 4. Nxd4 {[%emt 0:00:06]} Nf6 {[%emt 0:00:03]} 5. Nc3 {[%emt 0:00:16]} a6 {[%emt 0:00:05]} 6. Bg5 {[%emt 0:00:08]} Nbd7 {[%emt 0:00:05]} 7. Bc4 {[%emt 0:00:05]} e6 {[%emt 0:04:49]} 8. f3 {[%emt 0:03:07]} b5 {[%emt 0:03:57]} 9. Bb3 {[%emt 0:01:42]} Nc5 {[%emt 0:03:17]} 10. Qd2 {[%emt 0:02:02]} Bb7 {[%emt 0:22:42]} 11. O-O-O {[%emt 0:01:40]} Be7 {[%emt 0:02:16]} 12. h4 {[%emt 0:00:11]} Rc8 {[%emt 0:09:20]} 13. Kb1 {[%emt 0:02:20]} O-O {[%emt 0:06:35]} 14. g4 {[%emt 0:02:25]} b4 {[%emt 0:08:05]} 15. Na4 {[%emt 0:08:43]} Qa5 {[%emt 0:15:20]} 16. Nxc5 {[%emt 0:01:12]} dxc5 {[%emt 0:01:19]} 17. e5 {[%emt 0:15:56]} cxd4 {[%emt 0:00:14]} 18. exf6 {[%emt 0:00:22]} gxf6 {[%emt 0:00:03]} 19. Bh6 {[%emt 0:01:22]} Rfd8 {[%emt 0:03:11]} 20. g5 {[%emt 0:08:20]} Kh8 {[%emt 0:06:22]} 21. Rhg1 {[%emt 0:15:07]} Qb5 {[%emt 0:02:43]} 22. Rde1 {[%emt 0:08:45]} d3 {[%emt 0:03:06]} 23. Bg7+ {[%emt 0:01:25]} Kxg7 {[%emt 0:01:51]} 24. gxf6+ {[%emt 0:00:05]} Kf8 {[%emt 0:02:01]} 25. Qh6+ {[%emt 0:07:46]} Ke8 {[%emt 0:00:01]} 26. fxe7 {[%emt 0:00:11]} dxc2+ {[%emt 0:00:21]} 27. Bxc2 {[%emt 0:02:01]} Kxe7 {[%emt 0:00:01]} 28. Bb3 {[%emt 0:02:52]} Qf5+ {[%emt 0:01:10]} 29. Ka1 {[%emt 0:00:10]} Rg8 {[%emt 0:02:09]} 30. Rxg8 {[%emt 0:02:57]} Rxg8 {[%emt 0:00:01]} 31. Qd2 {[%emt 0:00:11]} Qc5 {[%emt 0:01:44]} 32. Rd1 {[%emt 0:02:49]} Bxf3 {[%emt 0:00:37]} 33. Qd7+ {[%emt 0:03:27]} Kf6 {[%emt 0:00:01]} 34. Re1 {[%emt 0:05:58]} Rg1 {[%emt 0:00:25]} 35. Qd2 {[%emt 0:00:54]} Rxe1+ {[%emt 0:02:07]} 36. Qxe1 {[%emt 0:00:04]} Bh5 {[%emt 0:00:21]} 37. a4 {[%emt 0:01:00]} bxa3 {[%emt 0:00:36]} 38. Qf1+ {[%emt 0:00:14]} Kg7 {[%emt 0:00:20]} 39. Qg2+ {[%emt 0:00:12]} Bg6 {[%emt 0:00:10]} 40. Ka2 {[%emt 0:00:24]} axb2 {[%emt 0:00:55]} 41. Qxb2+ {[%emt 0:30:05]} e5 {[%emt 0:30:04]} 42. Qe2 {[%emt 0:00:11]} Qa5+ {[%emt 0:00:32]} 43. Kb2 {[%emt 0:00:05]} Qb5 {[%emt 0:00:04]} 44. Qg4 h5 {[%emt 0:00:08]} 45. Qg5 {[%emt 0:01:28]} a5 {[%emt 0:00:59]} 46. Ka3 {[%emt 0:00:22]} Qb4+ {[%emt 0:00:00]} 0-1

[Event "WJCC U20 Open 2019"]
[Site "New Delhi"]
[Date "2019.10.21"]
[Round "7.42"]
[White "Dahanayake, Isara Banidu"]
[Black "Doluweera, Minul Sanjula"]
[Result "0-1"]
[ECO "B01"]
[WhiteElo "1771"]
[BlackElo "2191"]
[Annotator "NA"]
[PlyCount "104"]
[EventDate "2019.10.15"]
[EventType "swiss"]
[EventCountry "IND"]
[SourceTitle "playchess.com"]
[Source "ChessBase"]
[SourceQuality "1"]
[TimeControl "40/5400+30:1800+30"]

1. e4 {[%emt 0:00:00]} d5 {[%emt 0:00:00]} 2. exd5 {[%emt 0:00:45]} Qxd5 {[%emt 0:01:01]} 3. Nc3 {[%emt 0:00:09]} Qd6 {[%emt 0:00:03]} 4. d4 {[%emt 0:01:08]} Nf6 {[%emt 0:00:05]} 5. Nf3 {[%emt 0:02:14]} g6 {[%emt 0:00:07]} 6. Nb5 {[%emt 0:16:03]} Qb6 {[%emt 0:03:47]} 7. c4 {[%emt 0:01:16]} c6 {[%emt 0:00:42]} 8. Nc3 {[%emt 0:04:01]} Bg7 {[%emt 0:00:47]} 9. h3 {[%emt 0:02:15]} O-O {[%emt 0:01:01]} 10. Bd3 {[%emt 0:10:23]} Nbd7 {[%emt 0:00:19]} 11. Qc2 {[%emt 0:03:28]} c5 {[%emt 0:13:19]} 12. d5 {[%emt 0:14:16]} e5 {[%emt 0:07:02]} 13. dxe6 {[%emt 0:09:45]} Qxe6+ {[%emt 0:00:02]} 14. Be3 {[%emt 0:04:05]} b6 {[%emt 0:02:03]} 15. O-O {[%emt 0:04:35]} Bb7 {[%emt 0:00:30]} 16. Rfe1 {[%emt 0:10:12]} Bxf3 {[%emt 0:11:20]} 17. Bxc5 {[%emt 0:06:31]} Ne5 {[%emt 0:04:36]} 18. Bxf8 {[%emt 0:00:52]} Bxf8 {[%emt 0:19:41]} 19. Nb5 {[%emt 0:05:25]} Rd8 {[%emt 0:04:56]} 20. Qc3 {[%emt 0:01:26]} Rxd3 {[%emt 0:03:53]} 21. Qxd3 {[%emt 0:00:45]} Nxd3 {[%emt 0:00:02]} 22. Rxe6 {[%emt 0:00:02]} fxe6 {[%emt 0:00:22]} 23. gxf3 {[%emt 0:00:04]} Nxb2 {[%emt 0:03:47]} 24. Nxa7 {[%emt 0:01:02]} Nxc4 {[%emt 0:00:14]} 25. Re1 {[%emt 0:01:04]} e5 {[%emt 0:05:15]} 26. Rc1 {[%emt 0:00:25]} Nd2 {[%emt 0:01:36]} 27. Rc3 {[%emt 0:00:35]} Bc5 {[%emt 0:06:12]} 28. Rd3 {[%emt 0:00:34]} Nc4 {[%emt 0:00:48]} 29. Rc3 {[%emt 0:00:18]} Na5 {[%emt 0:01:25]} 30. Rd3 {[%emt 0:00:40]} Kf7 {[%emt 0:00:53]} 31. Kg2 {[%emt 0:00:38]} Ke6 {[%emt 0:00:09]} 32. Nb5 {[%emt 0:00:13]} Nc6 {[%emt 0:00:56]} 33. Nc3 {[%emt 0:00:39]} Nh5 {[%emt 0:00:18]} 34. Rd1 {[%emt 0:00:24]} Nf4+ {[%emt 0:00:26]} 35. Kg3 {[%emt 0:00:09]} Nd4 {[%emt 0:03:44]} 36. Ne4 {[%emt 0:00:11]} Nde2+ {[%emt 0:00:12]} 37. Kh2 {[%emt 0:00:41]} Bd4 {[%emt 0:00:19]} 38. Rd2 {[%emt 0:01:10]} Nc3 {[%emt 0:01:17]} 39. Nxc3 {[%emt 0:00:30]} Bxc3 {[%emt 0:00:02]} 40. Rc2 {[%emt 0:00:12]} Bd4 {[%emt 0:00:34]} 41. Rc7 {[%emt 0:30:36]} h5 {[%emt 0:30:25]} 42. Kg3 {[%emt 0:00:44]} Kd6 {[%emt 0:03:57]} 43. Rc2 {[%emt 0:00:00]} Ke6 {[%emt 0:00:00]} 44. Rc6+ {[%emt 0:00:00]} Kf5 {[%emt 0:00:00]} 45. Rc2 {[%emt 0:00:00]} Nd3 {[%emt 0:00:00]} 46. Rd2 {[%emt 0:00:00]} Nxf2 {[%emt 0:00:00]} 47. Kg2 {[%emt 0:00:00]} h4 {[%emt 0:00:00]} 48. a4 {[%emt 0:00:00]} Kf4 {[%emt 0:00:00]} 49. Re2 {[%emt 0:00:00]} g5 {[%emt 0:00:00]} 50. Re1 {[%emt 0:00:00]} Nd3 {[%emt 0:00:00]} 51. Re4+ {[%emt 0:00:00]} Kf5 {[%emt 0:00:00]} 52. Re2 {[%emt 0:00:00]} Nf4+ {[%emt 0:00:00]} 0-1

[Event "WJCC U20 Open 2019"]
[Site "New Delhi"]
[Date "2019.10.21"]
[Round "7.43"]
[White "Davis, Holden"]
[Black "Aravena Navarro, Alexis Andres"]
[Result "0-1"]
[ECO "B21"]
[WhiteElo "1817"]
[BlackElo "2023"]
[Annotator "NA"]
[PlyCount "68"]
[EventDate "2019.10.15"]
[EventType "swiss"]
[EventCountry "IND"]
[SourceTitle "playchess.com"]
[Source "ChessBase"]
[SourceQuality "1"]
[TimeControl "40/5400+30:1800+30"]

1. e4 {[%emt 0:00:00]} c5 {[%emt 0:00:00]} 2. d4 {[%emt 0:00:39]} cxd4 {[%emt 0:00:02]} 3. c3 {[%emt 0:00:06]} Nf6 {[%emt 0:00:45]} 4. e5 {[%emt 0:00:20]} Nd5 {[%emt 0:00:10]} 5. Nf3 {[%emt 0:00:05]} Nc6 {[%emt 0:00:26]} 6. cxd4 {[%emt 0:02:19]} d6 {[%emt 0:02:11]} 7. Bc4 {[%emt 0:05:55]} Nb6 {[%emt 0:00:33]} 8. Bb5 {[%emt 0:01:49]} Bd7 {[%emt 0:01:26]} 9. Nc3 {[%emt 0:05:16]} e6 {[%emt 0:12:59]} 10. O-O {[%emt 0:03:54]} Nb4 {[%emt 0:00:14]} 11. a3 {[%emt 0:05:06]} Bxb5 {[%emt 0:09:04]} 12. Nxb5 {[%emt 0:00:10]} N4d5 {[%emt 0:00:46]} 13. Bg5 {[%emt 0:04:32]} Qd7 {[%emt 0:00:08]} 14. Qe2 {[%emt 0:04:55]} h6 {[%emt 0:03:31]} 15. Bd2 {[%emt 0:08:46]} a6 {[%emt 0:07:29]} 16. Nxd6+ {[%emt 0:01:27]} Bxd6 {[%emt 0:00:13]} 17. exd6 {[%emt 0:00:04]} O-O {[%emt 0:01:13]} 18. Ne5 {[%emt 0:00:51]} Qxd6 {[%emt 0:00:11]} 19. Qg4 {[%emt 0:06:47]} Nf6 {[%emt 0:10:14]} 20. Qh4 {[%emt 0:01:24]} Nbd5 {[%emt 0:00:02]} 21. a4 {[%emt 0:05:01]} Ne7 {[%emt 0:18:41]} 22. Rfd1 {[%emt 0:15:37]} Nf5 {[%emt 0:00:22]} 23. Qh3 {[%emt 0:00:39]} Rfd8 {[%emt 0:07:18]} 24. Bc3 {[%emt 0:06:37]} Rac8 {[%emt 0:01:13]} 25. Nf3 {[%emt 0:03:20]} Nd5 {[%emt 0:01:18]} 26. Bd2 {[%emt 0:05:10]} Rc4 {[%emt 0:01:31]} 27. b3 {[%emt 0:02:21]} Rc2 {[%emt 0:02:22]} 28. Ne5 {[%emt 0:07:38]} b5 {[%emt 0:02:24]} 29. axb5 {[%emt 0:00:04]} axb5 {[%emt 0:00:01]} 30. Ra7 {[%emt 0:00:30]} Rdc8 {[%emt 0:03:19]} 31. g4 {[%emt 0:01:12]} Rxd2 {[%emt 0:00:40]} 32. Rxd2 {[%emt 0:01:46]} Rc1+ {[%emt 0:00:09]} 33. Kg2 {[%emt 0:00:10]} Nf4+ {[%emt 0:00:10]} 34. Kf3 {[%emt 0:00:05]} Qd5+ {[%emt 0:00:56]} 0-1

[Event "WJCC U20 Open 2019"]
[Site "New Delhi"]
[Date "2019.10.21"]
[Round "7.44"]
[White "Sivathanujan, S."]
[Black "Lama, Milan"]
[Result "0-1"]
[ECO "B32"]
[WhiteElo "1766"]
[BlackElo "1976"]
[Annotator "NA RC"]
[PlyCount "68"]
[EventDate "2019.10.15"]
[EventType "swiss"]
[EventCountry "IND"]
[SourceTitle "playchess.com"]
[Source "ChessBase"]
[SourceQuality "1"]
[TimeControl "40/5400+30:1800+30"]

1. e4 {[%emt 0:00:00]} c5 {[%emt 0:00:00]} 2. Nf3 {[%emt 0:00:00]} Nc6 {[%emt 0:00:00]} 3. d4 {[%emt 0:00:23]} cxd4 {[%emt 0:00:00]} 4. Nxd4 {[%emt 0:00:05]} g6 {[%emt 0:00:00]} 5. Be3 {[%emt 0:00:11]} Bg7 {[%emt 0:00:06]} 6. Nc3 {[%emt 0:00:10]} Nf6 {[%emt 0:00:06]} 7. f3 {[%emt 0:02:23]} O-O {[%emt 0:00:12]} 8. Nb3 {[%emt 0:03:15]} a5 {[%emt 0:02:14]} 9. a4 {[%emt 0:01:46]} Nb4 {[%emt 0:01:02]} 10. Qd2 {[%emt 0:00:56]} d5 11. O-O-O {[%emt 0:00:43]} Be6 {[%emt 0:06:59]} 12. Nc5 {[%emt 0:01:28]} b6 {[%emt 0:06:12]} 13. Nxe6 {[%emt 0:04:19]} fxe6 {[%emt 0:00:05]} 14. g4 {[%emt 0:01:19]} Rc8 {[%emt 0:02:08]} 15. g5 {[%emt 0:06:49]} Nh5 {[%emt 0:02:07]} 16. Bh3 {[%emt 0:00:21]} Rxc3 {[%emt 0:10:34]} 17. Bxe6+ {[%emt 0:00:41]} Kh8 {[%emt 0:01:43]} 18. bxc3 {[%emt 0:07:03]} Na2+ {[%emt 0:00:15]} 19. Kb2 {[%emt 0:04:03]} Bxc3+ {[%emt 0:01:59]} 20. Qxc3+ {[%emt 0:00:06]} Nxc3 {[%emt 0:00:07]} 21. Bd4+ {[%emt 0:00:04]} Ng7 {[%emt 0:04:12]} 22. Bxc3 {[%emt 0:00:08]} Qd6 {[%emt 0:32:10]} 23. Bxd5 {[%emt 0:01:05]} Qf4 {[%emt 0:02:25]} 24. h4 {[%emt 0:04:25]} h5 {[%emt 0:02:24]} 25. gxh6 {[%emt 0:01:59]} Qxh6 {[%emt 0:00:06]} 26. h5 {[%emt 0:00:39]} g5 {[%emt 0:10:59]} 27. Bb3 {[%emt 0:01:50]} Kh7 {[%emt 0:05:08]} 28. Rd7 {[%emt 0:01:06]} Rxf3 {[%emt 0:01:51]} 29. Be5 {[%emt 0:03:12]} Rxb3+ {[%emt 0:01:31]} 30. cxb3 {[%emt 0:00:11]} Qe6 {[%emt 0:00:39]} 31. Rd5 {[%emt 0:00:07]} Qg4 {[%emt 0:01:26]} 32. Bc3 {[%emt 0:01:36]} Qg2+ {[%emt 0:00:59]} 33. Ka3 {[%emt 0:00:11]} Qxh1 {[%emt 0:00:13]} 34. Rxg5 {[%emt 0:00:33]} Qc1+ {[%emt 0:00:07]} 0-1

[Event "WJCC U20 Open 2019"]
[Site "New Delhi"]
[Date "2019.10.21"]
[Round "7.45"]
[White "Hamad Essam"]
[Black "Swarnavo Choudhury"]
[Result "1/2-1/2"]
[ECO "B40"]
[WhiteElo "1849"]
[BlackElo "1797"]
[Annotator "NA"]
[PlyCount "81"]
[EventDate "2019.10.15"]
[EventType "swiss"]
[EventCountry "IND"]
[SourceTitle "playchess.com"]
[Source "ChessBase"]
[SourceQuality "1"]
[TimeControl "40/5400+30:1800+30"]

1. e4 {[%emt 0:00:00]} c5 {[%emt 0:00:00]} 2. Nf3 {[%emt 0:00:00]} e6 {[%emt 0:00:09]} 3. c3 {[%emt 0:00:00]} d5 {[%emt 0:01:35]} 4. exd5 {[%emt 0:00:00]} exd5 {[%emt 0:02:38]} 5. d4 {[%emt 0:00:00]} Nc6 {[%emt 0:00:18]} 6. Bb5 {[%emt 0:00:00]} Bd6 {[%emt 0:01:46]} 7. dxc5 {[%emt 0:01:05]} Bxc5 {[%emt 0:00:13]} 8. O-O {[%emt 0:02:10]} Nge7 {[%emt 0:03:46]} 9. Nbd2 {[%emt 0:00:26]} O-O {[%emt 0:00:19]} 10. Nb3 Bb6 {[%emt 0:00:57]} 11. Nbd4 {[%emt 0:02:01]} Bg4 {[%emt 0:02:16]} 12. Qd3 {[%emt 0:06:33]} Qd6 {[%emt 0:14:42]} 13. Re1 {[%emt 0:07:01]} Bc7 {[%emt 0:04:03]} 14. g3 {[%emt 0:00:10]} Ng6 {[%emt 0:02:28]} 15. Bxc6 {[%emt 0:20:05]} bxc6 {[%emt 0:01:05]} 16. Ng5 {[%emt 0:00:05]} h6 {[%emt 0:04:16]} 17. Bf4 {[%emt 0:00:15]} Qd7 {[%emt 0:05:08]} 18. Bxc7 {[%emt 0:02:55]} hxg5 {[%emt 0:08:16]} 19. Ba5 {[%emt 0:00:36]} c5 {[%emt 0:02:40]} 20. f3 {[%emt 0:03:58]} Bh3 {[%emt 0:04:18]} 21. Nc2 {[%emt 0:00:42]} Bf5 {[%emt 0:00:37]} 22. Qd2 {[%emt 0:00:19]} Rfe8 {[%emt 0:03:13]} 23. Rxe8+ {[%emt 0:08:24]} Rxe8 {[%emt 0:01:18]} 24. Re1 {[%emt 0:00:16]} Ne5 {[%emt 0:03:53]} 25. Rxe5 {[%emt 0:01:26]} Rxe5 {[%emt 0:00:29]} 26. Ne3 {[%emt 0:00:07]} d4 {[%emt 0:02:08]} 27. cxd4 {[%emt 0:03:06]} Qxd4 {[%emt 0:01:48]} 28. Kf2 {[%emt 0:00:31]} Be6 {[%emt 0:03:50]} 29. Qc1 {[%emt 0:01:08]} Rxe3 {[%emt 0:16:58]} 30. Qxe3 {[%emt 0:00:16]} Qxb2+ {[%emt 0:00:11]} 31. Qd2 {[%emt 0:04:03]} Qa3 {[%emt 0:01:23]} 32. Qd8+ {[%emt 0:04:06]} Kh7 {[%emt 0:00:13]} 33. Bd2 {[%emt 0:00:05]} c4 {[%emt 0:08:10]} 34. Qxg5 {[%emt 0:00:16]} Qd6 {[%emt 0:00:11]} 35. Bc3 {[%emt 0:00:45]} Qf8 {[%emt 0:01:41]} 36. h4 {[%emt 0:01:02]} f6 {[%emt 0:00:21]} 37. Qe3 {[%emt 0:02:02]} Qa3 {[%emt 0:00:42]} 38. Qe4+ {[%emt 0:01:59]} Kh8 {[%emt 0:00:29]} 39. Qxe6 {[%emt 0:02:31]} Qxc3 {[%emt 0:00:04]} 40. Qe8+ {[%emt 0:00:07]} Kh7 {[%emt 0:00:03]} 41. Qh5+ {[%emt 0:30:05]} 1/2-1/2

[Event "WJCC U20 Open 2019"]
[Site "New Delhi"]
[Date "2019.10.22"]
[Round "8.5"]
[White "Gazik, Viktor"]
[Black "Costachi, Mihnea"]
[Result "0-1"]
[ECO "D11"]
[WhiteElo "2546"]
[BlackElo "2463"]
[Annotator "RC"]
[PlyCount "74"]
[EventDate "2019.10.15"]
[EventType "swiss"]
[EventCountry "IND"]
[SourceTitle "playchess.com"]
[Source "ChessBase"]
[SourceQuality "1"]
[TimeControl "40/5400+30:1800+30"]

1. d4 {[%emt 0:00:00]} d5 {[%emt 0:00:00]} 2. c4 {[%emt 0:00:00]} c6 {[%emt 0:00:01]} 3. Nf3 {[%emt 0:00:00]} Nf6 {[%emt 0:00:55]} 4. e3 {[%emt 0:00:00]} Bg4 {[%emt 0:04:38]} 5. h3 {[%emt 0:00:39]} Bh5 {[%emt 0:00:04]} 6. g4 {[%emt 0:00:07]} Bg6 {[%emt 0:00:05]} 7. Ne5 {[%emt 0:00:04]} Nbd7 {[%emt 0:00:03]} 8. Nxg6 {[%emt 0:07:24]} hxg6 {[%emt 0:01:40]} 9. Bg2 {[%emt 0:05:12]} e6 {[%emt 0:05:12]} 10. Nd2 {[%emt 0:01:55]} Bb4 {[%emt 0:08:29]} 11. a3 {[%emt 0:00:24]} Bxd2+ {[%emt 0:03:39]} 12. Bxd2 {[%emt 0:00:07]} g5 {[%emt 0:02:51]} 13. O-O {[%emt 0:20:57]} Nf8 {[%emt 0:09:08]} 14. b4 {[%emt 0:08:55]} dxc4 {[%emt 0:14:07]} 15. Rc1 {[%emt 0:07:43]} Ng6 {[%emt 0:01:47]} 16. Rxc4 {[%emt 0:00:35]} Nh4 {[%emt 0:01:27]} 17. Qe2 {[%emt 0:09:31]} Nxg2 {[%emt 0:01:21]} 18. Kxg2 {[%emt 0:00:10]} Nd5 {[%emt 0:11:01]} 19. e4 {[%emt 0:18:29]} Nf4+ {[%emt 0:00:57]} 20. Bxf4 {[%emt 0:00:06]} gxf4 {[%emt 0:00:02]} 21. Rd1 {[%emt 0:04:48]} Qf6 {[%emt 0:04:03]} 22. Qf3 {[%emt 0:00:05]} O-O {[%emt 0:07:43]} 23. Rc5 {[%emt 0:01:09]} Rad8 {[%emt 0:02:53]} 24. g5 {[%emt 0:01:54]} Qg6 {[%emt 0:00:13]} 25. h4 {[%emt 0:04:12]} f6 {[%emt 0:00:55]} 26. Kh3 {[%emt 0:04:22]} b6 {[%emt 0:02:45]} 27. Rxc6 {[%emt 0:00:34]} fxg5 {[%emt 0:00:09]} 28. h5 {[%emt 0:03:39]} Qe8 {[%emt 0:01:31]} 29. d5 {[%emt 0:00:02]} Rf6 {[%emt 0:02:47]} 30. b5 {[%emt 0:00:01]} Rh6 {[%emt 0:02:25]} 31. dxe6 {[%emt 0:01:48]} g4+ {[%emt 0:00:32]} 32. Qxg4 {[%emt 0:00:06]} Rxd1 {[%emt 0:01:41]} 33. Qxd1 {[%emt 0:00:33]} Rxh5+ {[%emt 0:00:05]} 34. Kg4 {[%emt 0:00:48]} Qg6+ {[%emt 0:00:04]} 35. Kxf4 {[%emt 0:00:06]} Qg5+ {[%emt 0:00:31]} 36. Kf3 {[%emt 0:00:07]} Rh3+ {[%emt 0:00:06]} 37. Ke2 {[%emt 0:00:05]} Qxb5+ {[%emt 0:00:29]} 0-1

[Event "WJCC U20 Open 2019"]
[Site "New Delhi"]
[Date "2019.10.22"]
[Round "8.16"]
[White "Bharath Subramaniyam H"]
[Black "Nigmatov, Ortik"]
[Result "0-1"]
[ECO "B38"]
[WhiteElo "2417"]
[BlackElo "2494"]
[Annotator "RC"]
[PlyCount "68"]
[EventDate "2019.10.15"]
[EventType "swiss"]
[EventCountry "IND"]
[SourceTitle "playchess.com"]
[Source "ChessBase"]
[SourceQuality "1"]
[TimeControl "40/5400+30:1800+30"]

1. e4 {[%emt 0:00:00]} c5 {[%emt 0:00:00]} 2. Nf3 {[%emt 0:00:00]} Nc6 {[%emt 0:00:00]} 3. d4 {[%emt 0:00:33]} cxd4 {[%emt 0:00:00]} 4. Nxd4 {[%emt 0:00:06]} g6 {[%emt 0:00:00]} 5. c4 {[%emt 0:04:43]} Bg7 {[%emt 0:00:17]} 6. Be3 {[%emt 0:00:20]} Nf6 {[%emt 0:00:07]} 7. Nc3 {[%emt 0:00:14]} d6 {[%emt 0:00:06]} 8. Be2 {[%emt 0:00:57]} O-O {[%emt 0:00:08]} 9. O-O {[%emt 0:00:46]} Bd7 {[%emt 0:00:05]} 10. Qd2 {[%emt 0:06:14]} Nxd4 {[%emt 0:00:21]} 11. Bxd4 {[%emt 0:00:07]} Bc6 {[%emt 0:00:05]} 12. f3 {[%emt 0:00:50]} Nd7 {[%emt 0:00:13]} 13. Be3 {[%emt 0:02:54]} a5 {[%emt 0:00:20]} 14. b3 {[%emt 0:05:40]} Nc5 {[%emt 0:00:21]} 15. Rab1 {[%emt 0:05:42]} e6 {[%emt 0:00:11]} 16. Rfd1 {[%emt 0:05:01]} Be5 {[%emt 0:00:29]} 17. Nb5 {[%emt 0:18:50]} Qh4 {[%emt 0:01:31]} 18. g3 {[%emt 0:04:43]} Bxg3 {[%emt 0:00:41]} 19. hxg3 {[%emt 0:05:20]} Qxg3+ {[%emt 0:00:06]} 20. Kf1 {[%emt 0:00:12]} Nxe4 {[%emt 0:00:23]} 21. Qd3 {[%emt 0:16:59]} f5 {[%emt 0:00:35]} 22. Nd4 {[%emt 0:05:42]} Bd7 {[%emt 0:02:00]} 23. f4 {[%emt 0:06:06]} e5 {[%emt 0:05:39]} 24. Nf3 {[%emt 0:01:08]} Bc6 {[%emt 0:00:18]} 25. c5 {[%emt 0:05:07]} g5 {[%emt 0:27:07]} 26. cxd6 {[%emt 0:00:43]} g4 {[%emt 0:01:56]} 27. Ne1 {[%emt 0:03:21]} Qh3+ {[%emt 0:07:36]} 28. Kg1 {[%emt 0:00:05]} Ng3 {[%emt 0:01:07]} 29. Qc4+ {[%emt 0:00:58]} Kg7 {[%emt 0:00:34]} 30. Bb6 {[%emt 0:00:43]} exf4 {[%emt 0:18:36]} 31. Bd4+ {[%emt 0:00:45]} Kg6 {[%emt 0:00:05]} 32. Bf1 {[%emt 0:00:35]} Nxf1 {[%emt 0:03:08]} 33. Qe6+ {[%emt 0:00:29]} Kh5 {[%emt 0:00:06]} 34. d7 {[%emt 0:00:32]} Ng3 {[%emt 0:00:17]} 0-1

[Event "WJCC U20 Open 2019"]
[Site "New Delhi"]
[Date "2019.10.22"]
[Round "8.28"]
[White "Saurabh Anand"]
[Black "Parkhov, Yair"]
[Result "1/2-1/2"]
[ECO "B92"]
[WhiteElo "2236"]
[BlackElo "2350"]
[Annotator "RC"]
[PlyCount "63"]
[EventDate "2019.10.15"]
[EventType "swiss"]
[EventCountry "IND"]
[SourceTitle "playchess.com"]
[Source "ChessBase"]
[SourceQuality "1"]
[TimeControl "40/5400+30:1800+30"]

1. e4 {[%emt 0:00:00]} c5 {[%emt 0:00:00]} 2. Nf3 {[%emt 0:00:01]} d6 {[%emt 0:00:00]} 3. d4 {[%emt 0:00:29]} cxd4 {[%emt 0:00:00]} 4. Nxd4 {[%emt 0:00:12]} Nf6 {[%emt 0:00:04]} 5. Nc3 {[%emt 0:00:11]} a6 {[%emt 0:00:05]} 6. Be2 {[%emt 0:00:39]} e5 {[%emt 0:02:10]} 7. Nf3 {[%emt 0:00:23]} Be7 {[%emt 0:00:08]} 8. Bg5 {[%emt 0:00:14]} Nbd7 {[%emt 0:00:07]} 9. a4 {[%emt 0:01:30]} Qb6 {[%emt 0:00:17]} 10. a5 {[%emt 0:03:30]} Qc6 {[%emt 0:00:37]} 11. Nd2 {[%emt 0:00:44]} h6 {[%emt 0:00:15]} 12. Be3 {[%emt 0:03:06]} Nc5 {[%emt 0:06:12]} 13. Bxc5 {[%emt 0:14:22]} Qxc5 {[%emt 0:00:08]} 14. Nc4 {[%emt 0:00:13]} Be6 {[%emt 0:01:48]} 15. Nb6 {[%emt 0:00:40]} Rb8 {[%emt 0:07:12]} 16. O-O {[%emt 0:10:57]} Bd8 {[%emt 0:03:21]} 17. Nbd5 {[%emt 0:03:26]} O-O {[%emt 0:18:46]} 18. Nxf6+ {[%emt 0:13:00]} Bxf6 {[%emt 0:00:47]} 19. Bg4 {[%emt 0:03:26]} Bd8 {[%emt 0:03:03]} 20. Bxe6 {[%emt 0:05:47]} fxe6 {[%emt 0:00:06]} 21. Na4 {[%emt 0:00:10]} Qc6 {[%emt 0:01:14]} 22. b4 {[%emt 0:01:55]} Be7 {[%emt 0:06:56]} 23. Qe2 {[%emt 0:03:51]} Rf4 {[%emt 0:11:29]} 24. Rfe1 {[%emt 0:01:41]} Rbf8 {[%emt 0:00:49]} 25. f3 {[%emt 0:00:56]} Qe8 {[%emt 0:07:34]} 26. Nb2 {[%emt 0:02:44]} Qg6 {[%emt 0:01:31]} 27. Rf1 {[%emt 0:01:12]} R4f7 {[%emt 0:03:29]} 28. Rad1 {[%emt 0:06:13]} Rc8 {[%emt 0:12:38]} 29. c4 {[%emt 0:01:29]} Bf8 {[%emt 0:01:26]} 30. Na4 {[%emt 0:01:08]} h5 {[%emt 0:00:35]} 31. Rb1 {[%emt 0:06:54]} h4 {[%emt 0:01:11]} 32. Nb6 {[%emt 0:04:35]} 1/2-1/2

[Event "WJCC U20 Open 2019"]
[Site "New Delhi"]
[Date "2019.10.22"]
[Round "8.37"]
[White "Doluweera, Minul Sanjula"]
[Black "O`Donnell, Conor"]
[Result "1-0"]
[ECO "D40"]
[WhiteElo "2191"]
[BlackElo "2345"]
[Annotator "RC"]
[PlyCount "59"]
[EventDate "2019.10.15"]
[EventType "swiss"]
[EventCountry "IND"]
[SourceTitle "playchess.com"]
[Source "ChessBase"]
[SourceQuality "1"]
[TimeControl "40/5400+30:1800+30"]

1. d4 Nf6 {[%emt 0:00:36]} 2. c4 {[%emt 0:00:06]} e6 {[%emt 0:00:33]} 3. Nf3 {[%emt 0:00:05]} d5 {[%emt 0:00:16]} 4. Nc3 {[%emt 0:00:04]} c5 {[%emt 0:04:08]} 5. e3 {[%emt 0:03:59]} cxd4 {[%emt 0:02:15]} 6. exd4 {[%emt 0:00:36]} Bb4 {[%emt 0:01:24]} 7. cxd5 {[%emt 0:01:38]} Nxd5 {[%emt 0:00:07]} 8. Bd2 {[%emt 0:00:02]} O-O {[%emt 0:01:21]} 9. Bd3 {[%emt 0:00:12]} Nc6 {[%emt 0:00:46]} 10. O-O {[%emt 0:00:06]} Be7 {[%emt 0:01:02]} 11. a3 {[%emt 0:14:33]} Bf6 {[%emt 0:03:24]} 12. Ne4 {[%emt 0:10:48]} Nxd4 {[%emt 0:09:01]} 13. Nxf6+ {[%emt 0:02:25]} Nxf6 {[%emt 0:09:46]} 14. Bb4 {[%emt 0:22:16]} Nxf3+ {[%emt 0:01:03]} 15. Qxf3 {[%emt 0:00:02]} Re8 {[%emt 0:00:32]} 16. Rad1 {[%emt 0:06:46]} Qb6 {[%emt 0:02:54]} 17. Bc3 {[%emt 0:16:42]} Nd5 {[%emt 0:06:35]} 18. Bxh7+ Kxh7 {[%emt 0:05:35]} 19. Qxf7 {[%emt 0:08:27]} Re7 {[%emt 0:03:57]} 20. Qf8 {[%emt 0:00:15]} Qc7 {[%emt 0:10:15]} 21. Rd4 {[%emt 0:01:01]} Rf7 {[%emt 0:07:01]} 22. Rh4+ {[%emt 0:02:20]} Kg6 {[%emt 0:00:03]} 23. Qh8 {[%emt 0:00:34]} Nxc3 {[%emt 0:01:40]} 24. Rg4+ {[%emt 0:01:17]} Kf6 {[%emt 0:01:54]} 25. Qh4+ {[%emt 0:00:07]} Ke5 {[%emt 0:00:12]} 26. bxc3 {[%emt 0:00:15]} Qxc3 {[%emt 0:07:09]} 27. Rd1 {[%emt 0:02:27]} Qc2 {[%emt 0:01:52]} 28. Rg5+ {[%emt 0:00:23]} Kf6 {[%emt 0:02:15]} 29. Rc5+ {[%emt 0:00:32]} g5 {[%emt 0:00:17]} 30. Qxg5# {[%emt 0:00:06]} 1-0